Cogmind - Beta 15 @@@ ROGUE MODE // 2025.10.05 @ 19:29:04 Player: microsand Result: Destroyed by X-67 Chaingunner with Minigun Performance ------------- Evolutions (3) 1500 Regions Visited (4) 800 Robots Destroyed (42) 210 Value Destroyed (1401) 1401 Prototype IDs (3) 60 Alien Tech Used (0) 0 Bonus (0) 0 TOTAL SCORE: 3971 Bonus ------- None Cogmind --------- Core Integrity 0/700 Matter 293/300 Energy 100/100 System Corruption 5% Temperature Cool (0) Movement Core (700) Ox13 Location -7/Factory Parts ------- > --- POWER (2) -------- (None) > --- PROPULSION (3) --- (None) > --- UTILITY (4) ------ High-capacity Storage Unit > --- WEAPON (4) ------- (None) > --- INVENTORY (20) --- Improved Aluminum Leg Gravmag System Huge Storage Unit Compact Battery (200) Peak State ------------ > --- POWER ------------ Light Nuclear Core > --- PROPULSION ------- Titanium Leg Titanium Leg Titanium Leg > --- UTILITY ---------- Small Storage Unit Advanced Visual Processing Unit Melee Analysis Suite Trap Extractor > --- WEAPON ----------- Improved Spread Laser Plasma Cannon Improved Grenade Launcher Katana > --- INVENTORY -------- Improved Aluminum Leg Improved Aluminum Leg Huge Storage Unit Compact Battery Arc Projector [Rating: 37] Favorites ----------- Power Light Ion Engine Engine Light Ion Engine Power Core Light Nuclear Core Propulsion Titanium Leg Treads Armored Treads Leg Titanium Leg Utility Small Storage Unit Device Trap Extractor Storage Small Storage Unit Processor Melee Analysis Suite Weapon Medium Laser Energy Gun Medium Laser Energy Cannon Plasma Cannon Ballistic Gun Heavy Assault Rifle Launcher Improved Grenade Launcher Special Weapon Welding Torch Slashing Weapon Katana Piercing Weapon Spear Build | -11 -10 -9 -8 -7 ------- Run | Yrd Mat Mat Mat Fac Slots Evolved 6 | . . 2 2 2 Power 1 | . . . 1 . Propulsion 1 | . . . . 1 Utility 2 | . . 1 1 . Weapon 2 | . . 1 . 1 Parts Attached 44 | 6 2 10 13 13 Power 11 | 1 . 3 3 4 Engine 9 | 1 . 3 2 3 Core 2 | . . . 1 1 Reactor . | . . . . . Propulsion 11 | 2 . 2 6 1 Treads 2 | . . . 2 . Leg 9 | 2 . 2 4 1 Wheel . | . . . . . Hover . | . . . . . Flight . | . . . . . Utility 8 | 1 . 3 2 2 Device 2 | . . 2 . . Storage 3 | 1 . 1 . 1 Processor 3 | . . . 2 1 Hackware . | . . . . . Protection . | . . . . . Artifact . | . . . . . Weapon 14 | 2 2 2 2 6 Energy Gun 7 | 2 2 . . 3 Energy Cannon 1 | . . . . 1 Ballistic Gun 2 | . . 2 . . Ballistic Cannon . | . . . . . Launcher 1 | . . . 1 . Special Weapon 1 | . . . . 1 Impact Weapon . | . . . . . Slashing Weapon 1 | . . . 1 . Piercing Weapon 1 | . . . . 1 Special Melee Weapon . | . . . . . Unidentified Prototypes 2 | . . . . 2 Parts Lost 31 | . . 3 10 18 Power 11 | . . 2 4 5 Propulsion 4 | . . . . 4 Utility 4 | . . . 1 3 Weapon 12 | . . 1 5 6 Highest Loss Streak 9 | . . 2 4 9 To Critical Strikes . | . . . . . Average Backups 5 | . 3 5 7 4 Power . | . . . . . Propulsion 1 | . . . 2 2 Utility 1 | . . 1 1 2 Weapon 1 | . 1 2 1 . Tool/Special . | . . . . . Unused Backups 5 | . . 1 1 3 Power . | . . . . . Propulsion 2 | . . 1 . 1 Utility 2 | . . . . 2 Weapon 1 | . . . 1 . Tool/Special . | . . . . . Average Slot Usage (%) 82 | . 85 87 84 76 Engine 8 | . 14 10 12 2 Core 1 | . . . . 2 Leg 19 | . 28 22 14 19 Device 8 | . . 11 12 6 Storage 9 | . 14 11 9 7 Processor 5 | . . . 8 8 Energy Gun 17 | . 28 26 10 11 Energy Cannon 2 | . . . . 5 Ballistic Gun 3 | . . 6 7 . Slashing Weapon 1 | . . . 4 1 Piercing Weapon 2 | . . . . 5 Peak Build Rating 37 | 6 7 17 22 37 Average Rating 19 | 4 6 10 18 30 On Entrance 10 | . 6 7 17 21 Naked Turns . | . . . . . Heaviest Build 62 | 12 13 24 27 62 Greatest Support 51 | 20 20 26 40 51 Greatest Overweight (x) 18 | . . 1 2 18 Average Overweight (x) . | . . . . 2 Largest Inventory Capacity 20 | 8 8 8 8 20 Average Capacity 8 | 7 8 8 8 9 Most Carried 8 | 3 5 8 8 7 Average Carried 5 | . 3 5 6 4 Final Capacity 20 | 8 8 8 8 20 Final Carried 8 | 1 5 8 7 4 Class Distribution -------------------- 40% | Gunner 24% | Mutant 18% | Scavenger-Gunner 10% | Scavenger-Mutant 5% | Skirmisher Dominant Class ---------------- Mutant | -10/Materials Gunner | -9/Materials Scavenger-Mutant | -8/Materials Gunner | -7/Factory Resources | -11 -10 -9 -8 -7 ----------- Run | Yrd Mat Mat Mat Fac Matter Collected 1019 | 257 23 131 376 232 Remotely 239 | . . 101 138 . Salvage Created 1624 | 20 81 432 566 525 Parts 91 | 3 2 24 28 34 Haulers Intercepted . | . . . . . Recyclers Shooed 1 | . . . . 1 Parts Field Recycled . | . . . . . Retrieved Matter . | . . . . . Parts Self-Destructed . | . . . . . Prevented . | . . . . . Kills | -11 -10 -9 -8 -7 ------- Run | Yrd Mat Mat Mat Fac Combat Hostiles Destroyed 33 | . 2 9 14 8 Melee 5 | . . . 2 3 Guns 25 | . 2 8 12 3 Cannons 1 | . . . . 1 AOE 2 | . . 1 . 1 Classes Destroyed 12 | 1 1 4 2 4 Worker 2 | . . . . 2 Builder 1 | . . . 1 . Tunneler 1 | 1 . . . . Recycler 3 | . . 1 1 1 Operator 1 | . . . . 1 Watcher 1 | . . 1 . . Swarmer 8 | . . 3 5 . Grunt 12 | . 2 3 6 1 Duelist 1 | . . . 1 . Sentry 7 | . . 3 2 2 Hunter 3 | . . . . 3 Programmer 2 | . . . . 2 Best Kill Streak 5 | 1 1 5 5 2 Combat Bots Only 5 | . 1 5 4 1 Max Kills in Single Turn 2 | 1 1 2 2 1 Gunslinging 1 | . . 1 . . Exploded 1 | . . 1 . 1 Melee 1 | . . . 1 1 Uniques/NPCs Destroyed . | . . . . . Combat | -11 -10 -9 -8 -7 -------- Run | Yrd Mat Mat Mat Fac Hostile Shots Fired 376 | . 18 29 149 180 Missed 88 | . 5 7 28 48 Hits 288 | . 13 22 121 132 Melee 5 | . . . 5 . Projectile 283 | . 13 22 116 132 Critical Strikes 8 | . 1 . 4 3 Damage Taken 4122 | . 172 363 1551 2036 Core 1076 | . 22 56 280 718 Absorbed by Shields . | . . . . . Regen/Repaired (Parts) 62 | . . 62 . . Core Remaining (%) 81 | 100 91 86 49 . Volleys Fired 108 | 2 13 22 48 23 Largest 3 | 2 2 3 3 3 Hottest 210 | 90 115 155 111 210 Shots Fired 247 | 4 26 59 101 57 Gun 222 | 4 26 59 97 36 Cannon 20 | . . . . 20 Launcher 5 | . . . 4 1 Special . | . . . . . Kinetic 56 | . . 8 48 . Thermal 160 | 2 26 40 49 43 Explosive 5 | . . . 4 1 Electromagnetic 26 | 2 . 11 . 13 Robot Hit Streak 20 | 1 9 14 20 5 Robot Miss Streak 6 | 1 1 3 6 6 Penetration Max . | . . . . . Secondary Targets 3 | . . 2 1 . Max Gunslinging Chain 2 | . . 2 1 . Shots Hit Robots 178 | 2 19 36 71 50 Core Hits 92 | 1 6 18 29 38 Critical Kills . | . . . . . Critical Parts Destroyed . | . . . . . Critical Strikes 8 | . 1 1 4 2 Burn 6 | . 1 1 4 . Impale 2 | . . . . 2 Melee Attacks 28 | . . . 10 18 Impact . | . . . . . Slashing 10 | . . . 10 . Piercing 18 | . . . . 18 Sneak Attacks 3 | . . . . 3 Combat Hostiles . | . . . . . Follow-up Attacks . | . . . . . Damage Inflicted 3506 | 24 237 552 1482 1211 Guns 2211 | 24 237 490 960 500 Cannons 299 | . . . . 299 Explosions 442 | . . 62 360 20 Melee 554 | . . . 162 392 Ramming . | . . . . . Kinetic 514 | . . 75 439 . Thermal 1838 | . 237 370 521 710 Explosive 380 | . . . 360 20 Electromagnetic 220 | 24 . 107 . 89 Impact . | . . . . . Slashing 162 | . . . 162 . Piercing 392 | . . . . 392 Highest Corruption 5 | . . 3 . 5 Average Corruption 3 | . . 1 . 4 Corruption Purged . | . . . . . Corruption Blocked . | . . . . . Effects 26 | . . 4 . 22 Message Errors 6 | . . . . 6 Matter Fused 7 | . . 2 . 5 Heat Flow Errors 2 | . . . . 2 Energy Discharges 3 | . . 1 . 2 Data Loss (minor) 5 | . . 1 . 4 Misfires 1 | . . . . 1 Alerts 2 | . . . . 2 Overload Shots . | . . . . . Overflow Damage 245 | . . . 29 216 Projectiles 1 | . . . . 1 Explosions 14 | . . . 14 . Melee 230 | . . . 15 215 Knockbacks . | . . . . . Impact . | . . . . . Kinetic . | . . . . . Secondary . | . . . . . Self-Inflicted Damage 141 | . . 63 44 34 Shots 5 | . . 2 1 2 Rammed . | . . . . . Targets Rammed 1 | . . 1 . . Kicked 1 | . . 1 . . Crushed . | . . . . . Highest Temperature 624 | 30 348 523 464 624 Average Temperature 172 | 18 193 151 200 157 Received Heat Transfer 921 | . 114 102 612 93 Effects 34 | . 1 7 14 12 Shutdowns 8 | . 1 2 3 2 Energy Bleed 7 | . . . 3 4 Interference 9 | . . 3 6 . Matter Decay 2 | . . . . 2 Short Circuit 1 | . . . 1 . Damage (minor) 6 | . . 2 1 3 Damage (core) 1 | . . . . 1 Siege Activations . | . . . . . Martial Activations . | . . . . . Shielding Activations . | . . . . . Robots Disrupted . | . . . . . Combat Hostiles . | . . . . . Robots Corrupted . | . . . . . Combat Hostiles . | . . . . . Parts Fried . | . . . . . Impact Corruptions . | . . . . . Robots Melted . | . . . . . Combat Hostiles . | . . . . . Parts Melted 12 | . 3 4 5 . Heat Transferred 4362 | . 777 1025 1702 858 Parts Sabotaged . | . . . . . Parts Stolen . | . . . . . Parts Stripped . | . . . . . Power Chain Reactions 2 | . . 2 . . Alert | -11 -10 -9 -8 -7 ------- Run | Yrd Mat Mat Mat Fac Maximum Alert Level 1 | . . . 1 . Low Security (%) 99 | 100 100 100 98 100 Level 1 . | . . . 1 . Level 2 . | . . . . . Level 3 . | . . . . . Level 4 . | . . . . . Level 5 . | . . . . . High Security . | . . . . . Max Security . | . . . . . Peak Influence 216 | 5 56 136 216 70 Initial 70 | . . 23 20 70 Average 48 | . 6 48 147 14 Influence Increases 1183 | 5 82 281 496 319 Destroy 0b10 Robot/C 660 | . 40 180 280 160 Destroy 0b10 Robot/NC 45 | 5 . 10 10 20 Destroy Leader 212 | . 20 52 70 70 Successful Hack 6 | . 6 . . . Select Force Hacks 80 | . . . 80 . Disable Machine 30 | . . . . 30 Destroy Structure 60 | . 1 9 26 24 Lose Combat Pursuer 90 | . 15 30 30 15 Influence Decreases 1183 | 5 26 288 391 473 Entered New Map 146 | . . 33 29 84 Time Decay 818 | 5 26 225 262 300 Lost Part 219 | . . 30 100 89 Squads Dispatched 15 | . 1 3 7 4 Investigation 5 | . . 3 2 . Extermination 2 | . . . . 2 Reinforcement 2 | . 1 . . 1 Assault . | . . . . . Garrison 6 | . . . 5 1 Intercept . | . . . . . Searches Triggered . | . . . . . Construction Impeded . | . . . . . Haulers Reinforced . | . . . . . Active Scanning Responses . | . . . . . Cargo Convoy Interrupts 1 | . . . . 1 Stealth | -11 -10 -9 -8 -7 --------- Run | Yrd Mat Mat Mat Fac Distress Signals 5 | . . 1 . 4 Communications Jammed . | . . . . . Distress Signals . | . . . . . Times Spotted 54 | . 7 11 20 16 Peak Tracking Total 6 | . 3 4 5 6 Tactical Retreats 5 | . 1 2 1 1 Traps | -11 -10 -9 -8 -7 ------- Run | Yrd Mat Mat Mat Fac Traps Triggered 2 | . . 2 . . Indirectly . | . . . . . Trap Hack Attempts . | . . . . . Triggered . | . . . . . Disarmed . | . . . . . Reprogrammed . | . . . . . Reused . | . . . . . Traps Extracted . | . . . . . Installed . | . . . . . Triggered . | . . . . . Machines | -11 -10 -9 -8 -7 ---------- Run | Yrd Mat Mat Mat Fac Machines Disabled 2 | . . . . 2 Max in Single Turn 1 | . . . . 1 Machines Repaired . | . . . . . Machines Dismantled . | . . . . . Machines Sabotaged 1 | . . . 1 . Overloaded Fab Kills . | . . . . . Hacking | -11 -10 -9 -8 -7 --------- Run | Yrd Mat Mat Mat Fac Machines Accessed 8 | . 1 2 4 1 Terminals 5 | . 1 1 3 . Fabricators 1 | . . . . 1 Repair Stations 1 | . . 1 . . Recycling Units . | . . . . . Scanalyzers 1 | . . . 1 . Garrison Access . | . . . . . Total Hacks 11 | . 1 4 5 1 Successful 6 | . 1 1 4 . Failed 5 | . . 3 1 1 Catastrophic 1 | . . . . 1 Database Lockouts . | . . . . . Manual 11 | . 1 4 5 1 Terminals 8 | . 1 3 4 . Fabricators 1 | . . . . 1 Repair Stations 1 | . . 1 . . Recycling Units . | . . . . . Scanalyzers 1 | . . . 1 . Garrison Access . | . . . . . Terminal Hacks 1 | . . . 1 . Alert Level 1 | . . . 1 . Fabricator Hacks . | . . . . . Repair Station Hacks . | . . . . . Recycling Unit Hacks . | . . . . . Scanalyzer . | . . . . . Garrison Access Hacks . | . . . . . Unauthorized Hacks 5 | . 1 1 3 . Terminals 3 | . 1 . 2 . Operators 2 | . 1 . 1 . Sabotage 1 | . . . 1 . Fabricators . | . . . . . Repair Stations 1 | . . 1 . . Patch 1 | . . 1 . . Recycling Units . | . . . . . Scanalyzers 1 | . . . 1 . Extract 1 | . . . 1 . Garrison Access . | . . . . . Data Cores Recovered . | . . . . . Used . | . . . . . Hacking Detections 4 | . . 1 2 1 Full Trace Events 1 | . . 1 . . Feedback Events . | . . . . . Feedback Blocked . | . . . . . Robot Schematics Acquired . | . . . . . Robots Built . | . . . . . Authchips . | . . . . . Time . | . . . . . Total Robot Build Rating . | . . . . . Part Schematics Acquired 10 | . . . 10 . Parts Built . | . . . . . Authchips . | . . . . . Time . | . . . . . Total Part Build Rating . | . . . . . Parts Repaired . | . . . . . Time . | . . . . . Parts Recycled . | . . . . . Recycled Matter . | . . . . . Retrieved Matter . | . . . . . Retrieved Components . | . . . . . Parts Scanalyzed . | . . . . . Part Schematics Acquired . | . . . . . Parts Damaged . | . . . . . Bothacking | -11 -10 -9 -8 -7 ------------ Run | Yrd Mat Mat Mat Fac Used RIF Installer . | . . . . . Robots Hacked . | . . . . . Non-combat . | . . . . . Combat . | . . . . . Robot Hacks Applied . | . . . . . Relay Couplers Released . | . . . . . Fabnet Peak Effective % . | . . . . . Robots Rewired . | . . . . . Allies Hacked . | . . . . . Hacks Repelled . | . . . . . Allies | -11 -10 -9 -8 -7 -------- Run | Yrd Mat Mat Mat Fac Total Allies . | . . . . . Largest Group . | . . . . . Highest-Rated Group . | . . . . . Highest-Rated Ally . | . . . . . Total Orders . | . . . . . Ally Attacks . | . . . . . Total Damage . | . . . . . Kills . | . . . . . Allies Corrupted . | . . . . . Allies Melted . | . . . . . Intel | -11 -10 -9 -8 -7 ------- Run | Yrd Mat Mat Mat Fac Active Infowar (turns) 165 | . . . . 165 Optics 165 | . . . . 165 Robot Analysis Total . | . . . . . Derelict Logs Recovered . | . . . . . Drone Launches . | . . . . . Drone Recoveries . | . . . . . Exploration | -11 -10 -9 -8 -7 ------------- Run | Yrd Mat Mat Mat Fac Turns Passed 2966 | 137 258 829 564 1178 Spaces Moved 1222 | 104 167 262 257 432 Core 108 | 11 . . . 97 Treads 37 | . . . 37 . Legs 1077 | 93 167 262 220 335 Wheels . | . . . . . Hover . | . . . . . Flight . | . . . . . Fastest Speed 50 | 50 120 120 120 126 Average Speed 163 | 112 120 148 139 216 Slowest Speed 950 | 120 120 190 260 950 Overloaded Moves . | . . . . . Propulsion Burnouts . | . . . . . Robots Hopped . | . . . . . Potential Cave-ins . | . . . . . Cave-ins Triggered 1 | . . . . 1 Exploration Rate (%) 18 | 5 32 21 23 11 Regions Visited 4 Branch Regions . Pre-discovered Areas . | . . . . . Known Exits Taken . | . . . . . Unknown Exits Taken 4 | 1 1 1 1 . Scrap Searched . | . . . . . Spaces Dug . | . . . . . Terrain Destroyed 61 | . . 7 22 32 Melee . | . . . . . Projectile . | . . . . . AOE 61 | . . 7 22 32 Terrain Rammed . | . . . . . Walls Destroyed . | . . . . . Machines Disabled . | . . . . . Actions | -11 -10 -9 -8 -7 --------- Run | Yrd Mat Mat Mat Fac Total 1938 | 120 197 654 359 608 Wait 464 | 2 12 342 7 101 Move 1218 | 103 166 261 256 432 Hop . | . . . . . Pick Up 49 | 7 4 12 13 13 Fast Attach . | . . . . . Attach 40 | 6 . 7 11 16 Detach 2 | . . 1 1 . Swap 16 | . 2 5 9 . Drop 12 | . . 3 4 5 Fire 108 | 2 13 22 48 23 Melee 28 | . . . 10 18 Ram . | . . . . . Kick 1 | . . 1 . . Crush . | . . . . . Escape Stasis . | . . . . . Rewire . | . . . . . Trap . | . . . . . Miscellaneous . | . . . . . Route ------- -11/Scrapyard -10/Materials -9/Materials -8/Materials -7/Factory History --------- Turn | Location | Event 5 | -11/Scrapyard | Discovered new exit (range 15) 138 | -11/Scrapyard | Entered Materials 281 | -10/Materials | Discovered new exit (range 9) 313 | -10/Materials | Build established: Mutant 396 | -10/Materials | Entered another Materials area 396 | -9/Materials | Evolved 2 slots: Utility x1, Weapon x1 704 | -9/Materials | Build established: Gunner 1155 | -9/Materials | Build established: Scavenger-Gunner 1172 | -9/Materials | Discovered new exit (range 8) 1225 | -9/Materials | Entered another Materials area 1225 | -8/Materials | Evolved 2 slots: Power x1, Utility x1 1277 | -8/Materials | Garrison activated, responded to threat 1473 | -8/Materials | Lost 4 parts (1p1u2w) 1675 | -8/Materials | Garrison activated, responded to threat 1713 | -8/Materials | Discovered new exit (range 16) 1758 | -8/Materials | Core integrity fell below 50% 1789 | -8/Materials | Entered Factory 1789 | -7/Factory | Evolved 2 slots: Propulsion x1, Weapon x1 1989 | -7/Factory | Crushed by falling debris 2344 | -7/Factory | Build established: Gunner 2717 | -7/Factory | Cargo convoy interrupted 2876 | -7/Factory | Lost 3 parts (1n2w) 2932 | -7/Factory | Core integrity fell below 50% 2942 | -7/Factory | Garrison activated, responded to threat 2953 | -7/Factory | Core integrity fell below 20% 2967 | -7/Factory | Destroyed by X-67 Chaingunner with Minigun Last Messages --------------- Slug penetrates Wall. K-01 Serf collects debris. K-01 Serf calls for garrison support. ALERT: Activating Garrison Access F003. Imp. Spread Laser destroyed. Spear destroyed. Identified Cld. Pulse Rifle. Faulty integration triggers heat surge (+426). Slug penetrates Wall. W-25 Informer sends out distress signal. Overheating: Energy bleed (-34). Slug penetrates Wall. Wall collapses. Mic. Nuclear Core destroyed. K-01 Serf collects debris. System corrupted: Matter fused (-7). Slug penetrates H-55 Commando. Faulty Cld. Pulse Rifle destroyed. Slug penetrates Wall. W-25 Informer sends out distress signal. Map ----- +----------------------------------------------------+ | ?????????????????????????????????????????????????? | | ?????????????????????????????????????????????????? | | ?????????????????????????????????????????????????? | | ?????????????????????????????????????????????????? | | ?????????????????????????????????????????????????? | | ?????????????????????????????????????????????????? | | ?????????????????????????????????????????????????? | | ?????????????????????????????????????????????????? | | ?????????????????????????????????????????????????? | | ???????????????????????????? ????????????????????? | | ???????????????????????????? ????????????????????? | | ???????????????????????????? #???????????????????? | | ???????????????????????????? #???????????????????? | | ????###+####+#????###+###### #???????????????????? | | ????# #????# #???????????????????? | | ????# #????# #???????????????????? | | ????# #????# #####???????????????? | | ##### ###### ???????????????? | | ???????????????? | | a ??????????????? | | """" """" """" """" """" """" """?????????????? | | """" """" """" """" """" """"i""""????????????? | | """" """" """" """" """" %""" """" """????????? | | h=%u u w ??????? | | h%! ??????? | | #@x#########?????????????? | | ######################=!k #???????????????? | | #????????????????????# #???????????????? | | #????????????????????# #???????????????? | | #????????????????????# ! #???????????????? | | #????????????????????# ! #???????????????? | | #??????############### #???????????????? | | #??????# ! ## #???????????????? | | #??????# [! ## #???????????????? | | ########| [! # #???????????????? | | !%+% [! ###########???????????????? | | #[ #?????????????????????????? | | + #?????????????????????????? | | # """""" #?????????????????????????? | | # """""" #?????????????????????????? | | ######+##+# """""" #?????????????????????????? | | [%= =% # """""" #?????????????????????????? | | % ![= !!!# #?????????????????????????? | | """" !=# "??T""" #?????????????????????????? | | """" ###???########?????????????????????????? | | """" #??????????????????????????????????????? | | """" #??????????????????????????????????????? | | """" #??????????????????????????????????????? | | """" #??????????????????????????????????????? | | "" " #??????????????????????????????????????? | +----------------------------------------------------+ Best States ------------- Heat Dissipation 34 Energy Generation 20 Energy Capacity 290 Matter Stores 300 Matter Capacity 300 Sight Range 20 Terrain Scan Density 85 Evasion (%) 55 Melee Accuracy 5 Recoil Reduction 2 Trap Extractor Capacity 4 Item Schematics ----------------- Imp. Terrain Scan Processor | -8/Materials | Extracted Machine Analyzer | -8/Materials | Extracted Shock Bomb Launcher | -8/Materials | Extracted Imp. Flight Unit | -8/Materials | Extracted Seismic Detector | -8/Materials | Extracted Cesium-ion Thruster | -8/Materials | Extracted Lrg. Matter Pod | -8/Materials | Extracted Adv. Targeting Computer | -8/Materials | Extracted Mace | -8/Materials | Extracted Imp. Terrain Scanner | -8/Materials | Extracted Robot Schematics ------------------ None Fabricated ------------ Nothing Repaired ---------- Nothing Alien Tech Used ----------------- None Achievements -------------- Use The Force Challenges ------------ None Game ------ Seed GrenadeSniperGenerator Manual? 0 Play Time 00:23:33 Cumulative 6.6 hours Start 2025.10.05 @ 19:05:52 End 2025.10.05 @ 19:29:04 Sessions 1 Manual Loads 0 Difficulty Rogue Special Mode None Game No. 19 Rogue 19 Adventurer 0 Explorer 0 Win Type - Total 0 Types 0/0/0/0/0/0/0/0/0/0 Lore% 10 Gallery% 14 Achievement% 12 Wizard Run 0 Options --------- Layout 1 ASCII 0 Keyboard 0 Movement Numpad Keybinds 0 Fullscreen 2 Font 24/Smallcaps Map View 50x35 Zoom Use 0% Tactical HUD 0 Map Filters NONE Filters NONE Steam 1 RUN: 15110a82-6b19-4c1d-ba6f-58ce733ad524